bitfinex/quotes_SOLUSD_20241121
["timestamp","ask_amount","ask_price","bid_price","bid_amount"]
[1732202108366,30.37415799,248.79,248.69,30.37415799]
[1732202108566,30.37415799,248.76,248.66,30.37415799]
[1732202108774,30.37415799,248.78,248.68,30.37415799]
[1732202108993,30.37415799,248.78,248.53,20.0]
[1732202108994,30.37415799,248.74,248.64,30.37415799]
[1732202109197,30.37415799,248.69,248.59,30.37415799]
[1732202109379,30.37415799,248.67,248.57,30.37415799]
[1732202109584,4.0176,248.9,248.68,0.5]
[1732202109771,30.37415799,248.87,248.78,30.37415799]
[1732202110193,30.37415799,248.85,248.76,30.37415799]
[1732202110788,34.39265799,248.85,248.76,30.37415799]
[1732202110971,30.37415799,248.85,248.76,30.37415799]
[1732202111169,30.37415799,248.87,248.76,30.37415799]
[1732202111393,30.37415799,248.87,248.78,30.37415799]
[1732202111676,30.37415799,248.87,248.7,45.5747]
[1732202111677,30.37415799,248.87,248.76,30.37415799]
[1732202111873,30.37415799,248.91,248.81,30.37415799]
[1732202113301,30.37415799,248.85,248.71,20.0]
[1732202113590,30.37415799,248.83,248.73,30.37415799]
[1732202113984,30.37415799,248.81,248.71,30.37415799]
[1732202114196,30.37415799,248.83,248.73,30.37415799]
[1732202114390,20.0,248.82,248.73,30.37415799]
[1732202114993,30.37415799,248.85,248.75,30.37415799]
[1732202115199,30.37415799,248.83,248.73,30.37415799]
[1732202115381,17.04607048,248.98,248.79,30.37415799]
[1732202115382,30.37415799,248.89,248.79,30.37415799]
[1732202115796,14.0572,248.98,248.7,33.7257]
[1732202115797,30.37415799,248.91,248.81,30.37415799]
[1732202116092,14.0572,248.98,248.7,33.2257]
[1732202116093,30.37415799,248.88,248.78,30.37415799]
[1732202116688,0.5,249.12,248.84,30.37415799]
[1732202116887,4.93661473,249.07,248.84,20.0]
[1732202117199,30.37415799,248.93,248.84,20.0]
[1732202117883,30.37415799,248.97,248.87,30.37415799]
[1732202118084,30.37415799,248.95,248.86,20.0]
[1732202118401,30.37415799,248.88,248.81,12.2061]
[1732202118708,30.37415799,248.89,248.82,20.0]
[1732202118884,0.92171473,249.06,248.82,20.0]
[1732202119207,30.37415799,248.88,248.82,20.0]
[1732202119713,30.37415799,248.92,248.82,41.87415799]
[1732202119906,30.37415799,248.9,248.83,0.5]
[1732202120088,30.37415799,249.0,248.83,0.5]
[1732202120089,30.37415799,248.92,248.83,0.5]
[1732202120583,30.37415799,249.0,248.82,11.5]
[1732202120584,30.37415799,248.9,248.82,11.5]
[1732202120978,30.37415799,248.88,248.82,11.5]
[1732202121185,0.5,248.96,248.82,11.5]
[1732202121186,30.37415799,248.86,248.82,11.5]
[1732202121388,0.5,248.98,248.82,11.5]
[1732202121597,4.0161,249.0,248.82,11.5]
[1732202121598,30.37415799,248.91,248.82,11.5]
[1732202121811,30.37415799,248.89,248.82,11.5]
[1732202122196,0.5,248.98,248.82,11.5]
[1732202122386,30.37415799,248.89,248.82,11.5]
[1732202122593,30.37415799,249.0,248.81,12.2061]
[1732202122594,30.37415799,248.85,248.81,12.2061]
[1732202122798,4.0166,248.97,248.7,33.7257]
[1732202122799,30.37415799,248.83,248.74,20.0]
[1732202123102,30.37415799,248.88,248.7,33.7257]
[1732202123103,30.37415799,248.77,248.7,33.2257]
[1732202123511,30.37415799,248.8,248.7,63.59985799]
[1732202123800,30.37415799,248.82,248.72,30.37415799]
[1732202124008,30.37415799,248.82,248.7,33.2257]
[1732202124009,30.37415799,248.88,248.76,30.37415799]
[1732202124209,30.37415799,248.88,248.78,30.37415799]
[1732202124419,30.37415799,248.9,248.81,20.0]
[1732202125088,30.37415799,248.88,248.84,23.776884]
[1732202125497,30.37415799,248.9,248.84,23.776884]
[1732202125796,0.5,248.96,248.8,23.776884]
[1732202125797,30.37415799,248.88,248.8,23.776884]
[1732202126002,30.37415799,248.88,248.79,20.0]
[1732202126003,30.37415799,248.88,248.82,23.776884]
[1732202126186,0.5,248.94,248.81,20.0]
[1732202126385,30.37415799,248.85,248.75,30.37415799]
[1732202126801,30.37415799,248.85,248.71,0.5]
[1732202126802,30.37415799,248.89,248.77,30.37415799]
[1732202126990,30.37415799,248.89,248.7,33.2257]
[1732202126991,30.37415799,248.89,248.79,30.37415799]
[1732202127793,30.37415799,248.91,248.82,43.776884]
[1732202128022,30.37415799,248.92,248.86,20.0]
[1732202128195,30.37415799,248.9,248.86,20.0]
[1732202128390,30.37415799,248.91,248.8,43.776884]
[1732202128590,30.37415799,248.89,248.8,43.776884]
[1732202129497,30.37415799,248.91,248.83,20.0]
[1732202129703,30.37415799,248.91,248.85,20.0]
[1732202129911,30.37415799,248.93,248.86,23.776884]
[1732202130307,30.37415799,248.95,248.86,23.776884]
[1732202130607,30.37415799,248.99,248.91,20.0]
[1732202130818,30.37415799,248.99,248.92,23.776884]
[1732202131028,30.37415799,248.99,248.91,20.0]
[1732202131321,30.37415799,248.99,248.9,30.37415799]
[1732202131525,30.37415799,248.99,248.91,23.776884]
[1732202132506,30.37415799,249.04,248.96,30.37415799]
[1732202132818,30.37415799,249.02,248.93,30.37415799]
[1732202133022,30.37415799,249.05,248.96,23.776884]
[1732202133226,30.37415799,249.05,248.94,23.776884]
[1732202133227,30.37415799,248.99,248.94,23.776884]
[1732202133525,30.37415799,248.97,248.91,31.3031]
[1732202134032,30.37415799,248.92,248.79,61.92985799]
[1732202134330,0.5,249.03,248.82,0.5]
[1732202134519,0.5,249.03,248.8,30.97682921]
[1732202134520,4.0141,249.12,248.86,0.5]
[1732202134708,4.0138,249.14,248.86,0.5]
[1732202134915,0.5,249.07,248.86,0.5]
[1732202135232,0.5,249.07,248.84,24.276884]
[1732202135531,30.37415799,248.95,248.84,24.276884]
[1732202135845,30.37415799,248.91,248.84,0.5]
[1732202136016,30.37415799,248.98,248.89,0.5]
[1732202136634,30.37415799,248.98,248.93,0.5]
[1732202136945,30.37415799,249.0,248.95,23.776884]
[1732202137625,30.37415799,249.04,248.95,23.776884]
[1732202138107,30.37415799,249.02,248.94,12.7091]
[1732202138425,30.37415799,249.04,248.94,12.7091]
[1732202138734,30.37415799,249.08,248.96,30.37415799]
[1732202138939,30.37415799,249.04,248.94,43.08325799]
[1732202139147,30.37415799,249.06,248.96,30.37415799]
[1732202139528,30.37415799,249.06,248.97,23.776884]
[1732202139738,30.37415799,249.08,248.99,23.776884]
[1732202140429,30.37415799,249.08,248.97,23.776884]
[1732202140645,18.54955445,249.07,248.97,23.776884]
[1732202140856,18.54955445,249.05,248.97,23.776884]
[1732202141146,18.54955445,249.05,248.95,23.776884]
[1732202141433,18.54955445,249.05,248.94,31.25865445]
[1732202141434,18.54955445,249.04,248.94,31.25865445]
[1732202142236,18.54955445,249.04,248.94,12.7091]
[1732202142412,18.54955445,249.02,248.94,12.7091]
[1732202143125,18.54955445,249.04,248.94,12.7091]
[1732202143436,18.54955445,249.04,248.95,18.54955445]
[1732202143622,4.0145,249.1,248.95,18.54955445]
[1732202143832,18.54955445,249.05,248.96,23.776884]
[1732202144142,18.04955445,249.07,248.98,23.776884]
[1732202144318,18.54955445,249.09,248.99,18.54955445]
[1732202144518,18.54955445,249.09,249.0,23.776884]
[1732202144913,4.23728496,249.15,249.0,42.32643845]
[1732202145119,18.54955445,249.12,249.02,18.54955445]
[1732202145744,18.54955445,249.1,249.0,42.32643845]
[1732202146047,18.54955445,249.08,248.98,18.54955445]
[1732202147845,18.54955445,249.1,249.0,18.54955445]
[1732202148019,18.54955445,249.12,249.02,18.54955445]
[1732202148225,4.23728496,249.15,249.04,18.54955445]
[1732202148523,18.54955445,249.14,249.04,18.54955445]
[1732202149317,18.54955445,249.14,249.06,18.54955445]
[1732202149555,18.54955445,249.14,249.04,18.54955445]
[1732202150841,18.54955445,249.14,249.02,18.54955445]
[1732202150842,18.54955445,249.12,249.02,18.54955445]
[1732202151019,0.5,249.14,249.02,18.54955445]
[1732202151219,18.54955445,249.11,249.02,18.54955445]
[1732202151415,18.54955445,249.13,249.02,18.54955445]
[1732202151848,18.54955445,249.1,248.91,0.5]
[1732202152020,18.54955445,249.1,249.0,18.54955445]
[1732202152840,4.23728496,249.15,249.0,18.54955445]
[1732202153053,18.54955445,249.11,249.0,18.54955445]
[1732202153228,4.23728496,249.15,249.1,18.54955445]
[1732202153427,4.23728496,249.15,249.02,0.5]
[1732202153428,4.23728496,249.15,249.12,18.54955445]
[1732202154231,4.23728496,249.15,249.01,44.467]
[1732202154232,4.23728496,249.15,249.14,18.54955445]
[1732202155450,0.5,249.47,249.23,0.5]
[1732202155627,0.5,249.47,249.16,12.1666]
[1732202155628,0.5,249.47,249.41,18.54955445]
[1732202155830,0.5,249.47,249.24,18.54955445]
[1732202155831,0.5,249.47,249.39,18.54955445]
[1732202156037,0.5,249.45,249.39,18.54955445]
[1732202156641,0.5,249.45,249.24,19.04955445]
[1732202156642,0.5,249.45,249.36,30.04980955]
[1732202156865,4.0089,249.44,249.24,30.04980955]
[1732202157041,30.04980955,249.4,249.29,30.04980955]
[1732202157672,0.5,249.62,249.38,30.04980955]
[1732202157828,12.2843,249.72,249.43,30.04980955]
[1732202157829,30.04980955,249.54,249.43,30.04980955]
[1732202158649,30.04980955,249.54,249.36,30.04980955]
[1732202158650,30.04980955,249.62,249.5,30.04980955]
[1732202158852,0.5,249.67,249.5,30.04980955]
[1732202159038,30.04980955,249.56,249.46,30.04980955]
[1732202159246,30.04980955,249.56,249.44,30.04980955]
[1732202159425,0.5,249.64,249.36,30.04980955]
[1732202159426,30.04980955,249.54,249.42,30.04980955]
[1732202159760,30.04980955,249.57,249.46,30.04980955]
[1732202159942,4.0046,249.71,249.53,30.04980955]
[1732202160133,0.5,249.76,249.57,30.04980955]
[1732202160134,30.04980955,249.68,249.57,30.04980955]
[1732202160447,30.04980955,249.68,249.49,30.04980955]
[1732202160448,30.04980955,249.66,249.55,30.04980955]
[1732202160628,30.04980955,249.62,249.51,30.04980955]
[1732202161042,30.04980955,249.62,249.53,30.04980955]
[1732202161247,30.04980955,249.66,249.55,30.04980955]
[1732202161456,30.04980955,249.66,249.46,12.9031]
[1732202161457,30.04980955,249.64,249.53,30.04980955]
[1732202161773,30.04980955,249.62,249.51,30.04980955]
[1732202162061,30.04980955,249.6,249.49,30.04980955]
[1732202162246,30.04980955,249.6,249.51,30.04980955]
[1732202162848,30.04980955,249.62,249.51,30.04980955]
[1732202163352,4.5049,249.69,249.49,30.04980955]
[1732202163541,30.04980955,249.63,249.53,30.04980955]
[1732202164155,30.04980955,249.65,249.55,30.04980955]
[1732202164348,30.04980955,249.67,249.57,30.04980955]
[1732202165277,30.04980955,249.65,249.55,30.04980955]
[1732202165965,30.04980955,249.65,249.39,0.5]
[1732202165966,30.04980955,249.63,249.51,30.04980955]
[1732202166155,30.04980955,249.63,249.39,0.5]
[1732202166156,30.04980955,249.63,249.53,30.04980955]
[1732202166862,30.04980955,249.65,249.55,30.04980955]
[1732202167073,30.04980955,249.69,249.57,30.04980955]
[1732202167667,30.04980955,249.75,249.67,30.04980955]
[1732202167849,30.04980955,249.75,249.6,30.04980955]
[1732202167850,33.2285,249.84,249.69,30.04980955]
[1732202168051,30.04980955,249.79,249.69,30.04980955]
[1732202168265,63.27830955,249.84,249.67,30.04980955]
[1732202168447,30.04980955,249.77,249.67,30.04980955]
[1732202168647,30.04980955,249.79,249.69,30.04980955]
[1732202168851,12.7685,249.91,249.78,30.04980955]
[1732202169058,30.04980955,249.93,249.82,30.04980955]
[1732202169352,30.04980955,249.86,249.76,30.04980955]
[1732202170385,3.9998,250.01,249.83,30.04980955]
[1732202170565,3.9998,250.01,249.75,12.26789766]
[1732202170566,30.04980955,249.95,249.85,30.04980955]
[1732202170758,0.92171473,249.94,249.85,30.04980955]
[1732202171082,0.92171473,249.94,249.87,30.04980955]
[1732202171585,30.04980955,249.93,249.83,30.04980955]
[1732202171957,0.5,250.0,248.68,36.41626288]
[1732202171958,30.04980955,249.86,249.65,0.5]
[1732202172185,30.04980955,249.82,249.71,30.04980955]
[1732202172691,30.04980955,249.82,249.73,30.04980955]
[1732202172981,30.04980955,249.88,249.78,30.04980955]
[1732202173189,30.04980955,249.88,249.65,0.5]
[1732202173399,30.04980955,249.9,249.79,30.04980955]
[1732202173886,30.04980955,249.9,249.81,30.04980955]
[1732202174086,30.04980955,249.92,249.81,30.04980955]
[1732202174268,30.04980955,249.92,249.83,30.04980955]
[1732202174769,4.0,250.0,249.83,30.04980955]
[1732202174970,30.04980955,249.93,249.83,30.04980955]
[1732202175195,30.04980955,249.89,249.79,30.04980955]
[1732202175881,4.0016,249.9,249.75,30.04980955]
[1732202175882,30.04980955,249.87,249.75,30.04980955]
[1732202176068,30.04980955,249.87,249.77,30.04980955]
[1732202176272,4.0016,249.9,249.79,30.04980955]
[1732202176488,30.04980955,249.87,249.77,30.04980955]
[1732202176686,0.5,250.0,249.83,18.42674391]
[1732202176993,18.42674391,249.92,249.81,18.42674391]
[1732202177876,18.42674391,249.9,249.79,18.42674391]
[1732202178075,18.42674391,249.88,249.77,18.42674391]
[1732202178274,18.42674391,249.86,249.75,18.42674391]
[1732202178579,18.42674391,249.84,249.73,18.42674391]
[1732202179101,18.42674391,249.75,249.65,18.42674391]
[1732202179407,0.5,249.82,249.56,12.4039]
[1732202179408,18.42674391,249.72,249.63,18.42674391]
[1732202179604,4.0042,249.74,249.56,12.4039]
[1732202179605,18.42674391,249.81,249.56,12.4039]
[1732202179774,4.0024,249.85,249.56,12.4039]
[1732202179775,4.0024,249.85,249.56,17.67183904]
[1732202180206,0.5,249.82,249.56,12.4039]
[1732202180379,0.5,249.79,249.56,12.4039]
[1732202180697,0.5,249.79,249.49,32.6337]
[1732202180698,18.42674391,249.7,249.6,18.42674391]
[1732202181289,18.42674391,249.64,249.53,18.42674391]
[1732202181492,18.42674391,249.64,249.55,18.42674391]
[1732202181691,18.42674391,249.65,249.54,18.42674391]
[1732202181999,18.42674391,249.67,249.58,18.42674391]
[1732202182172,4.0044,249.73,249.6,18.42674391]
[1732202182173,18.42674391,249.69,249.6,18.42674391]
[1732202182488,12.3553,249.77,249.48,18.42674391]
[1732202182489,18.42674391,249.71,249.62,18.42674391]
[1732202183085,18.42674391,249.69,249.6,18.42674391]
[1732202183403,18.42674391,249.69,249.45,12.716]
[1732202183404,18.42674391,249.62,249.5,18.42674391]
[1732202183593,18.42674391,249.64,249.56,18.42674391]
[1732202183893,18.42674391,249.64,249.48,18.42674391]
[1732202183894,31.57325609,249.56,249.48,18.42674391]
[1732202184143,31.57325609,249.56,249.45,12.716]
[1732202184329,31.57325609,249.56,249.52,18.42674391]
[1732202184632,31.57325609,249.56,249.54,18.42674391]
[1732202185223,18.42674391,249.75,249.54,18.42674391]
[1732202185531,18.42674391,249.75,249.66,18.42674391]
[1732202185915,18.42674391,249.77,249.66,18.42674391]
[1732202186619,4.0026,249.84,249.66,18.42674391]
[1732202186817,18.42674391,249.76,249.66,18.42674391]
[1732202187044,18.42674391,249.76,249.64,18.42674391]
[1732202187211,18.42674391,249.74,249.64,18.42674391]
[1732202187410,18.42674391,249.72,249.62,18.42674391]
[1732202187610,18.42674391,249.67,249.56,18.42674391]
[1732202187907,18.42674391,249.67,249.48,49.61524391]
[1732202187908,18.42674391,249.61,249.5,18.42674391]
[1732202188217,18.42674391,249.61,249.48,31.1885]
[1732202188218,18.42674391,249.55,249.46,18.42674391]
[1732202188417,18.42674391,249.55,249.38,31.1885]
[1732202188418,18.42674391,249.53,249.42,18.42674391]
[1732202188623,30.03411539,249.54,249.43,30.03411539]
[1732202188933,30.03411539,249.56,249.45,30.03411539]
[1732202189115,30.03411539,249.55,249.45,30.03411539]
[1732202189310,30.03411539,249.53,249.43,30.03411539]
[1732202189515,30.03411539,249.55,249.45,30.03411539]
[1732202189934,30.03411539,249.55,249.43,30.03411539]
[1732202190411,30.03411539,249.55,249.38,31.1885]
[1732202190412,30.03411539,249.55,249.45,30.03411539]
[1732202191032,30.03411539,249.53,249.43,30.03411539]
[1732202191554,4.0066,249.59,249.36,43.28981539]
[1732202191555,30.03411539,249.47,249.37,30.03411539]
[1732202192061,4.0066,249.59,249.44,30.03411539]
[1732202192062,30.03411539,249.54,249.44,30.03411539]
[1732202192222,30.03411539,249.58,249.48,30.03411539]
[1732202192427,30.03411539,249.56,249.46,30.03411539]
[1732202192643,30.03411539,249.56,249.44,30.03411539]
[1732202193021,30.03411539,249.52,249.42,30.03411539]
[1732202193251,30.03411539,249.5,249.4,30.03411539]
[1732202193443,30.03411539,249.5,249.39,4.004]
[1732202193837,30.03411539,249.5,249.4,30.03411539]
[1732202194033,30.03411539,249.55,249.44,30.03411539]
[1732202194340,30.03411539,249.51,249.4,30.03411539]
[1732202194537,30.03411539,249.49,249.39,4.004]
[1732202195229,30.03411539,249.49,249.4,30.03411539]
[1732202195442,4.0074,249.54,249.29,4.004]
[1732202195443,30.03411539,249.41,249.29,4.004]
[1732202195746,30.03411539,249.43,249.33,30.03411539]
[1732202195933,30.03411539,249.41,249.31,30.03411539]
[1732202196137,30.03411539,249.39,249.29,34.03811539]
[1732202196341,14.0274,249.51,249.35,30.03411539]
[1732202196342,30.03411539,249.46,249.35,30.03411539]
[1732202196734,30.03411539,249.44,249.35,30.03411539]
[1732202197129,30.03411539,249.44,249.33,30.03411539]
[1732202197555,30.03411539,249.36,249.19,30.2789]
[1732202197730,30.03411539,249.36,249.24,30.03411539]
[1732202197931,30.03411539,249.38,249.27,30.03411539]
[1732202198240,30.03411539,249.38,249.12,30.03411539]
[1732202198241,30.03411539,249.31,249.2,30.03411539]
[1732202199228,30.03411539,249.29,249.2,30.03411539]
[1732202199860,30.03411539,249.31,249.2,30.03411539]
[1732202200038,30.03411539,249.36,249.24,30.03411539]
[1732202200343,30.03411539,249.36,249.26,30.03411539]
[1732202200550,5.0086,249.46,249.14,0.5]
[1732202200551,30.03411539,249.32,249.14,0.5]
[1732202200739,30.03411539,249.32,249.22,30.03411539]
[1732202200932,30.03411539,249.35,249.24,30.03411539]
[1732202201133,30.03411539,249.35,249.26,30.03411539]
[1732202201360,30.03411539,249.37,249.26,30.03411539]
[1732202201539,30.03411539,249.33,249.22,30.03411539]
[1732202201743,30.03411539,249.31,249.2,30.03411539]
[1732202201943,30.03411539,249.29,249.18,30.03411539]
[1732202202256,30.03411539,249.27,249.16,30.03411539]
[1732202202638,30.03411539,249.27,249.18,30.03411539]
[1732202202842,30.03411539,249.29,249.18,30.03411539]
[1732202203042,30.03411539,249.27,249.18,30.03411539]
[1732202203754,30.03411539,249.25,249.16,30.03411539]
[1732202204246,30.03411539,249.25,249.14,30.03411539]
[1732202204644,30.03411539,249.23,249.14,30.03411539]
[1732202205051,30.03411539,249.21,249.12,30.03411539]
[1732202205235,0.5,249.32,249.14,30.03411539]
[1732202205236,30.03411539,249.23,249.14,30.03411539]
[1732202205643,12.3678,249.44,249.22,60.06823078]
[1732202205835,30.03411539,249.43,249.33,30.03411539]
[1732202206051,30.03411539,249.45,249.35,30.03411539]
[1732202206845,30.03411539,249.43,249.33,30.03411539]
[1732202207036,30.03411539,249.47,249.35,30.03411539]
[1732202207257,30.03411539,249.45,249.35,30.03411539]
[1732202207634,30.03411539,249.43,249.33,30.03411539]
[1732202207839,30.03411539,249.45,249.35,30.03411539]
[1732202208152,30.03411539,249.45,249.24,42.14031539]
[1732202208153,30.03411539,249.43,249.33,30.03411539]
[1732202208647,30.03411539,249.46,249.36,30.03411539]
[1732202208848,30.03411539,249.48,249.38,30.03411539]
[1732202209666,30.03411539,249.46,249.36,30.03411539]
[1732202209841,0.5,249.51,249.36,30.03411539]
[1732202210041,30.03411539,249.46,249.36,30.03411539]
[1732202210639,30.03411539,249.44,249.34,30.03411539]
[1732202211266,30.03411539,249.42,249.34,30.03411539]
[1732202211965,30.03411539,249.46,249.37,30.03411539]
[1732202212660,30.03411539,249.44,249.35,30.03411539]
[1732202212848,30.03411539,249.44,249.33,30.03411539]
[1732202213048,30.03411539,249.42,249.33,30.03411539]
[1732202213660,30.03411539,249.4,249.29,30.03411539]
[1732202214253,30.03411539,249.42,249.32,30.03411539]
[1732202214457,30.03411539,249.4,249.3,30.03411539]
[1732202214655,30.03411539,249.42,249.32,30.03411539]
[1732202215768,30.03411539,249.4,249.3,30.03411539]
[1732202215942,30.03411539,249.42,249.32,30.03411539]
[1732202216263,0.5,249.53,249.4,30.03411539]
[1732202216461,30.03411539,249.5,249.4,30.03411539]
[1732202216669,18.49088615,249.48,249.38,18.49088615]
[1732202216840,18.49088615,249.46,249.24,12.1062]
[1732202217045,18.49088615,249.46,249.35,18.49088615]
[1732202217268,18.49088615,249.44,249.35,18.49088615]
[1732202217787,18.49088615,249.44,249.33,18.49088615]
[1732202218068,18.49088615,249.42,249.33,18.49088615]
[1732202218245,22.49998615,249.44,249.33,18.49088615]
[1732202218442,18.49088615,249.42,249.33,18.49088615]
[1732202219546,4.0089,249.45,249.37,18.49088615]
[1732202219745,18.49088615,249.46,249.37,18.49088615]
[1732202220162,18.49088615,249.5,249.41,18.49088615]
[1732202220466,18.49088615,249.52,249.43,18.49088615]
[1732202220675,68.49088615,249.56,249.45,18.49088615]
[1732202221063,68.49088615,249.56,249.47,18.49088615]
[1732202221064,50.0,249.56,249.47,18.49088615]
[1732202221659,68.49088615,249.56,249.47,18.49088615]
[1732202221959,68.49088615,249.56,249.24,31.09708615]
[1732202221960,18.49088615,249.5,249.41,18.49088615]
[1732202222172,18.49088615,249.48,249.24,31.09708615]
[1732202222349,54.0071,249.56,249.44,18.49088615]
[1732202222350,18.49088615,249.54,249.44,18.49088615]
[1732202222775,18.49088615,249.52,249.42,18.49088615]
[1732202222951,18.99088615,249.48,249.38,18.49088615]
[1732202223157,18.49088615,249.4,249.3,18.49088615]
[1732202223656,18.49088615,249.37,249.27,18.49088615]
[1732202225163,18.49088615,249.37,249.28,30.07466213]
[1732202225164,30.07466213,249.37,249.28,30.07466213]
[1732202225480,4.5094,249.41,249.16,13.077]
[1732202225481,30.07466213,249.35,249.23,30.07466213]
[1732202225658,4.0094,249.41,249.07,30.07466213]
[1732202225659,30.07466213,249.24,249.07,30.07466213]
[1732202225990,30.07466213,249.24,249.02,30.4779]
[1732202225991,30.07466213,249.17,249.02,30.4779]
[1732202226275,30.07466213,249.17,248.99,13.077]
[1732202226276,30.07466213,249.11,248.99,13.077]
[1732202226476,30.07466213,249.11,249.02,30.07466213]
[1732202226791,4.0134,249.17,248.89,0.5]
[1732202226792,30.07466213,249.05,248.96,30.07466213]
[1732202227084,30.07466213,249.12,248.82,30.4779]
[1732202227085,30.07466213,249.01,248.92,30.07466213]
[1732202227368,0.5,249.09,248.94,30.07466213]
[1732202227369,30.07466213,249.03,248.94,30.07466213]
[1732202227572,30.07466213,249.01,248.9,30.07466213]
[1732202227981,30.07466213,248.97,248.88,30.07466213]
[1732202228154,30.07466213,248.92,248.82,30.07466213]
[1732202228347,30.07466213,248.92,248.71,42.7401]
[1732202228348,30.07466213,248.87,248.78,30.07466213]
[1732202228553,30.07466213,248.89,248.78,30.07466213]
[1732202228771,30.07466213,248.93,248.82,30.07466213]
[1732202228973,0.5,249.11,248.76,30.07466213]
[1732202228974,2.89582781,249.02,248.92,30.07466213]
[1732202229199,2.89582781,249.02,248.8,0.5]
[1732202229370,23.776884,249.07,248.78,0.5]
[1732202229571,0.5,249.04,248.76,30.07466213]
[1732202229797,0.5,249.02,248.76,30.07466213]
[1732202229994,30.07466213,248.94,248.84,30.07466213]
[1732202230585,30.07466213,248.92,248.82,30.07466213]
[1732202230798,30.07466213,248.9,248.79,30.07466213]
[1732202230974,4.0169,248.95,248.71,42.7401]
[1732202230975,30.07466213,248.92,248.82,30.07466213]
[1732202231177,4.0169,248.95,248.8,30.07466213]
[1732202231178,30.07466213,248.9,248.8,30.07466213]
[1732202231399,30.07466213,248.94,248.84,30.07466213]
[1732202231573,5.05063264,249.01,248.76,30.07466213]
[1732202231574,30.07466213,248.98,248.88,30.07466213]
[1732202231782,4.0133,249.17,248.96,30.07466213]
[1732202231981,30.07466213,249.12,248.85,0.5]
[1732202232178,30.07466213,249.1,249.0,30.07466213]
[1732202232578,30.07466213,249.08,248.98,30.07466213]
[1732202232783,30.07466213,249.04,248.94,30.07466213]
[1732202232999,30.07466213,249.04,248.76,30.57466213]
[1732202233000,30.07466213,249.0,248.9,30.07466213]
[1732202233176,30.07466213,248.98,248.88,30.07466213]
[1732202233480,30.07466213,248.98,248.76,30.07466213]
[1732202233481,30.07466213,249.02,248.92,30.07466213]
[1732202233802,34.14053922,249.12,248.94,30.07466213]
[1732202233803,30.07466213,249.04,248.94,30.07466213]
[1732202234304,23.776884,249.06,248.76,30.57466213]
[1732202234305,30.07466213,249.01,248.91,30.07466213]
[1732202234507,30.07466213,249.12,248.77,23.776884]
[1732202234508,30.07466213,249.09,248.99,30.07466213]
[1732202234999,30.07466213,249.11,249.01,30.07466213]
[1732202235300,12.1454,249.18,249.09,30.07466213]
[1732202235514,32.9414,249.21,249.09,30.07466213]
[1732202235515,30.07466213,249.2,249.09,30.07466213]
[1732202235673,30.07466213,249.22,249.11,30.07466213]
[1732202235875,30.07466213,249.15,249.03,30.07466213]
[1732202236101,30.07466213,249.13,249.03,30.07466213]
[1732202236312,30.07466213,249.11,249.01,30.07466213]
[1732202236683,30.07466213,249.07,248.97,30.07466213]
[1732202236982,30.07466213,249.09,248.99,30.07466213]
[1732202237181,30.07466213,249.11,249.01,30.07466213]
[1732202237486,30.07466213,249.07,248.97,30.07466213]
[1732202238009,30.07466213,249.13,249.03,30.07466213]
[1732202238206,30.07466213,249.13,248.88,30.07466213]
[1732202238207,30.07466213,249.22,249.11,30.07466213]
[1732202238378,0.5,249.2,248.89,20.0]
[1732202238579,4.013,249.19,248.89,20.0]
[1732202238999,0.5,249.15,248.86,0.5]
[1732202239199,0.5,249.15,248.84,20.0]
[1732202239521,0.5,249.15,248.83,13.4351]
[1732202239522,30.07466213,249.02,248.92,30.07466213]
[1732202239685,30.07466213,248.98,248.88,30.07466213]
[1732202239886,0.5,249.1,248.81,32.4332]
[1732202239887,30.07466213,248.96,248.86,30.07466213]
[1732202240590,0.5,249.06,248.9,30.07466213]
[1732202240591,30.07466213,249.0,248.9,30.07466213]
[1732202240803,30.07466213,249.04,248.94,30.07466213]
[1732202241513,30.07466213,249.06,248.96,30.07466213]
[1732202241686,30.07466213,249.08,248.98,30.07466213]
[1732202242090,30.07466213,249.1,249.0,30.07466213]
[1732202242307,30.07466213,249.05,248.95,30.07466213]
[1732202242485,30.07466213,249.05,248.79,0.5]
[1732202242486,30.07466213,249.01,248.9,30.07466213]
[1732202243090,30.07466213,248.92,248.82,30.07466213]
[1732202244164,30.07466213,248.92,248.64,75.41056213]
[1732202244165,30.07466213,248.83,248.72,30.07466213]
[1732202244325,30.07466213,248.88,248.49,20.74104095]
[1732202244326,30.07466213,248.77,248.55,0.5]
[1732202244525,30.07466213,248.77,248.68,30.07466213]
[1732202245052,20.0,248.87,248.49,12.5036]
[1732202245053,6.30428925,248.85,248.75,30.07466213]
[1732202245223,30.07466213,248.99,248.84,30.07466213]
[1732202245424,30.07466213,248.97,248.85,30.07466213]